fUSD/lending_fUSD_20241108
["ID","MTS","AMOUNT","RATE_DAILY","PERIOD"]
[341606552,1731024002639,300.0,0.00019725,2]
[341606553,1731024121269,252.0,0.00019725,2]
[341606555,1731024250710,634.53,0.00025462,120]
[341606557,1731024265014,156.66,0.00015342,2]
[341606558,1731024433142,-450.0,0.00021,2]
[341606559,1731024433163,-500.0,0.00023,2]
[341606560,1731024433184,-1111.79,0.00023589,2]
[341606561,1731024433204,-128.15931414,0.00024396,2]
[341606562,1731024548113,-152.38,0.0002427,2]
[341606563,1731024548135,-40.39068586,0.00024396,2]
[341606578,1731024626526,1125.71,0.00023744,2]
[341606581,1731024631834,-1301.36397506,0.00024999,2]
[341606582,1731024631847,-21.63602494,0.00024999,2]
[341606583,1731024631857,-550.0,0.00025,2]
[341606584,1731024631867,-178.629437,0.00025,2]
[341606585,1731024631878,-547.030563,0.00025,2]
[341606586,1731024631888,-150.99,0.00025,2]
[341606587,1731024631897,-568.58119607,0.00025008,2]
[341606588,1731024631908,-2457.85061201,0.00025008,2]
[341606589,1731024631925,-1098.09,0.00025008,2]
[341606590,1731024631995,-771.18235631,0.00025008,2]
[341606591,1731024632006,-1063.14813,0.00025008,2]
[341606592,1731024632019,-724.05,0.00025008,2]
[341606593,1731024632049,-2176.37284977,0.00025008,2]
[341606594,1731024632061,-1297.00343464,0.00025008,2]
[341606595,1731024632073,-1947.2218158,0.00025008,2]
[341606596,1731024632085,-2616.58799259,0.00025008,2]
[341606597,1731024632096,-1346.4689072,0.00025008,2]
[341606598,1731024632111,-1314.66865468,0.00025008,2]
[341606599,1731024632127,-1234.94644207,0.00025008,2]
[341606600,1731024632138,-1883.10503528,0.00025008,2]
[341606649,1731024637703,-1974.40075315,0.00025008,2]
[341606650,1731024637713,-1074.15,0.00025009,2]
[341606651,1731024637722,-500.0,0.00025068,7]
[341606652,1731024637732,-249.44924685,0.00025068,7]
[341606653,1731024637758,-483.7355491,0.00025068,7]
[341606654,1731024637813,-66.81520405,0.00025068,7]
[341606655,1731024637822,-386.54610177,0.00025068,2]
[341606656,1731024637833,-4986.86389823,0.00025068,2]
[341606657,1731024637842,-1074.15,0.0002541,2]
[341606658,1731024637852,-176.0,0.00025462,2]
[341606659,1731024637861,-250.0,0.00025471,2]
[341606660,1731024637871,-185.65,0.00025479,2]
[341606661,1731024637880,-815.63,0.00025481,2]
[341606662,1731024637891,-200.0,0.00025497,2]
[341606663,1731024637900,-165.46,0.00025498,2]
[341606664,1731024637909,-160.0,0.00025501,2]
[341606665,1731024637919,-10703.59092237,0.00025509,2]
[341606666,1731024637935,-13196.40907763,0.00025509,2]
[341606667,1731024637944,-250.0,0.00025561,2]
[341606668,1731024637955,-284.55,0.0002557,2]
[341606669,1731024637965,-840.0,0.00025639,2]
[341606670,1731024637975,-1074.15,0.00025812,2]
[341606671,1731024637984,-157.19,0.00025858,30]
[341606672,1731024637995,-800.0,0.0002589,7]
[341606673,1731024638005,-198.85,0.00025958,2]
[341606674,1731024638015,-5000.0,0.00026,2]
[341606675,1731024638025,-1125.71,0.00026008,2]
[341606676,1731024638036,-167.76,0.00026141,2]
[341606677,1731024638046,-500.0,0.00026164,7]
[341606678,1731024638056,-1074.15,0.00026214,2]
[341606679,1731024638065,-4492.0,0.000265,2]
[341606680,1731024638074,-1074.15,0.00026616,2]
[341606681,1731024638084,-800.0,0.00026712,7]
[341606682,1731024638094,-500.0,0.00026712,7]
[341606683,1731024638103,-185.65,0.00026753,2]
[341606684,1731024638112,-407.30714364,0.00026897,2]
[341606685,1731024638123,-1625.225898,0.00026918,2]
[341606686,1731024638133,-500.0,0.00026986,7]
[341606687,1731024638142,-600.0,0.00027,2]
[341606688,1731024638151,-163.509,0.00027017,2]
[341606689,1731024638161,-1989.0,0.00027017,2]
[341606690,1731024638170,-559.0,0.00027017,2]
[341606691,1731024638179,-1920.0,0.00027017,2]
[341606692,1731024638189,-920.0,0.00027017,2]
[341606693,1731024638198,-908.637,0.00027017,2]
[341606694,1731024638209,-2908.0,0.00027017,2]
[341606695,1731024638218,-1258.0,0.00027017,2]
[341606696,1731024638228,-3461.0,0.00027017,2]
[341606697,1731024638238,-1074.15,0.00027018,2]
[341606698,1731024638247,-774.2516,0.0002703,2]
[341606699,1731024638256,-1625.22589799,0.00027108,2]
[341606700,1731024638317,-162.25805,0.0002712,2]
[341606701,1731024638326,-162.25805,0.0002712,2]
[341606702,1731024638336,-15291.68104053,0.0002713,2]
[341606703,1731024638345,-1721.6934,0.00027196,2]
[341606704,1731024638354,-19140.21351129,0.00027196,2]
[341606705,1731024638363,-1031.0008,0.00027197,2]
[341606706,1731024638372,-150.110806,0.00027198,3]
[341606707,1731024638381,-150.110806,0.00027198,4]
[341606708,1731024638390,-150.110806,0.00027198,2]
[341606709,1731024638399,-162.25805,0.000272,2]
[341606710,1731024638408,-407.30714365,0.00027204,2]
[341606711,1731024638418,-198.85,0.00027256,2]
[341606712,1731024638427,-162.25805,0.0002728,2]
[341606713,1731024638436,-500.0,0.00027296,2]
[341606714,1731024638445,-500.0,0.00027296,2]
[341606715,1731024638454,-500.0,0.00027296,2]
[341606716,1731024638463,-469.85004596,0.00027296,2]
[341606717,1731024638472,-500.0,0.00027296,2]
[341606718,1731024638481,-500.0,0.00027296,2]
[341606719,1731024638491,-500.0,0.00027296,2]
[341606720,1731024638499,-500.0,0.00027296,2]
[341606721,1731024638509,-500.0,0.00027296,2]
[341606722,1731024638517,-500.0,0.00027296,2]
[341606723,1731024638528,-500.0,0.00027296,2]
[341606724,1731024638538,-528.89503217,0.00027296,2]
[341606725,1731024638547,-1263.37189023,0.00027296,10]
[341606726,1731024638557,-200.0,0.00027297,2]
[341606727,1731024638566,-33107.5505,0.00027297,2]
[341606728,1731024638575,-3970.8137,0.00027297,2]
[341606729,1731024638584,-10543.7192,0.00027297,2]
[341606730,1731024638593,-1202.4042,0.00027297,2]
[341606731,1731024638602,-10587.4325,0.00027297,2]
[341606732,1731024638611,-2500.0,0.00027297,2]
[341606733,1731024638620,-180.02349677,0.00027297,2]
[341606734,1731024638629,-432.86016342,0.00027297,2]
[341606735,1731024638638,-1625.22589799,0.00027297,2]
[341606736,1731024638647,-150.110806,0.00027298,3]
[341606737,1731024638657,-150.110806,0.00027298,4]
[341606738,1731024638666,-150.110806,0.00027298,2]
[341606739,1731024638675,-500.0,0.00027373,2]
[341606740,1731024638684,-150.0,0.00027373,2]
[341606741,1731024638693,-160.46257103,0.00027373,2]
[341606742,1731024638702,-500.0,0.00027373,2]
[341606743,1731024638711,-160.79837592,0.00027373,2]
[341606744,1731024638720,-217.05276592,0.00027387,2]
[341606745,1731024638731,-150.110806,0.00027396,3]
[341606746,1731024638740,-150.110806,0.00027396,4]
[341606747,1731024638750,-150.110806,0.00027396,2]
[341606748,1731024638760,-500.0,0.00027397,2]
[341606749,1731024638770,-587.5999323,0.00027397,2]
[341606750,1731024638786,-416.52421522,0.00027397,2]
[341606751,1731024638796,-500.0,0.00027397,2]
[341606752,1731024638806,-500.0,0.00027397,2]
[341606753,1731024638817,-500.0,0.00027397,2]
[341606754,1731024638827,-2000.0,0.00027397,2]
[341606755,1731024638836,-177.415875,0.00027397,2]
[341606756,1731024638845,-500.0,0.00027397,2]
[341606757,1731024638855,-200.0,0.00027397,2]
[341606758,1731024638864,-500.0,0.00027397,2]
[341606759,1731024638874,-336.98831669,0.00027397,2]
[341606760,1731024638883,-500.0,0.00027397,2]
[341606761,1731024638897,-500.0,0.00027397,2]
[341606762,1731024638906,-632.3227114,0.00027397,2]
[341606763,1731024638916,-500.0,0.00027397,2]
[341606764,1731024638926,-500.0,0.00027397,2]
[341606765,1731024638935,-500.0,0.00027397,2]
[341606766,1731024638945,-500.0,0.00027397,2]
[341606767,1731024638957,-500.0,0.00027397,2]
[341606768,1731024638966,-500.0,0.00027397,2]
[341606769,1731024638975,-542.61,0.00027397,2]
[341606770,1731024638985,-500.0,0.00027397,2]
[341606771,1731024638994,-500.0,0.00027397,2]
[341606772,1731024639004,-704.62,0.00027397,2]
[341606773,1731024639013,-500.0,0.00027397,2]
[341606774,1731024639025,-500.0,0.00027397,2]
[341606775,1731024639034,-500.0,0.00027397,2]
[341606776,1731024639044,-500.0,0.00027397,2]
[341606777,1731024639054,-500.0,0.00027397,2]
[341606778,1731024639063,-500.0,0.00027397,2]
[341606779,1731024639073,-500.0,0.00027397,2]
[341606780,1731024639082,-500.0,0.00027397,2]
[341606781,1731024639091,-500.0,0.00027397,2]
[341606782,1731024639101,-500.0,0.00027397,2]
[341606783,1731024639110,-500.0,0.00027397,2]
[341606784,1731024639119,-500.0,0.00027397,2]
[341606785,1731024639129,-500.0,0.00027397,2]
[341606786,1731024639138,-500.0,0.00027397,2]
[341606787,1731024639148,-500.0,0.00027397,2]
[341606788,1731024639158,-500.0,0.00027397,2]
[341606789,1731024639167,-500.0,0.00027397,2]
[341606790,1731024639177,-500.0,0.00027397,2]
[341606791,1731024639186,-500.0,0.00027397,2]
[341606792,1731024639195,-550.4,0.00027397,2]
[341606793,1731024639205,-500.0,0.00027397,2]
[341606794,1731024639215,-500.0,0.00027397,2]
[341606795,1731024639224,-500.0,0.00027397,2]
[341606796,1731024639233,-500.0,0.00027397,2]
[341606797,1731024639243,-500.0,0.00027397,2]
[341606798,1731024639252,-500.0,0.00027397,2]
[341606799,1731024639261,-500.0,0.00027397,2]
[341606800,1731024639272,-500.0,0.00027397,2]
[341606801,1731024639281,-500.0,0.00027397,2]
[341606802,1731024639291,-500.0,0.00027397,2]
[341606803,1731024639300,-500.0,0.00027397,2]
[341606804,1731024639309,-618.01184517,0.00027397,2]
[341606805,1731024639318,-500.0,0.00027397,2]
[341606806,1731024639327,-500.0,0.00027397,2]
[341606807,1731024639336,-500.0,0.00027397,2]
[341606808,1731024639346,-500.0,0.00027397,2]
[341606809,1731024639356,-500.0,0.00027397,2]
[341606810,1731024639365,-519.97,0.00027397,2]
[341606811,1731024639374,-500.0,0.00027397,2]
[341606812,1731024639384,-500.0,0.00027397,2]
[341606813,1731024639394,-500.0,0.00027397,2]
[341606814,1731024639403,-500.0,0.00027397,2]
[341606815,1731024639412,-500.0,0.00027397,2]
[341606816,1731024639421,-500.0,0.00027397,2]
[341606817,1731024639430,-500.0,0.00027397,2]
[341606818,1731024639440,-500.0,0.00027397,2]
[341606819,1731024639449,-500.0,0.00027397,2]
[341606820,1731024639458,-500.0,0.00027397,2]
[341606821,1731024639468,-500.0,0.00027397,2]
[341606822,1731024639477,-500.0,0.00027397,2]
[341606823,1731024639486,-500.0,0.00027397,2]
[341606824,1731024639495,-500.0,0.00027397,2]
[341606825,1731024639505,-500.0,0.00027397,2]
[341606826,1731024639514,-500.0,0.00027397,2]
[341606827,1731024639525,-500.0,0.00027397,2]
[341606828,1731024639534,-500.0,0.00027397,2]
[341606829,1731024639543,-500.0,0.00027397,2]
[341606830,1731024639553,-500.0,0.00027397,2]
[341606832,1731024639562,-500.0,0.00027397,2]
[341606833,1731024639571,-500.0,0.00027397,2]
[341606834,1731024639580,-500.0,0.00027397,2]
[341606835,1731024639589,-500.0,0.00027397,2]
[341606836,1731024639598,-500.0,0.00027397,2]
[341606837,1731024639607,-500.0,0.00027397,2]
[341606839,1731024639616,-500.0,0.00027397,2]
[341606841,1731024639625,-500.0,0.00027397,2]
[341606843,1731024639634,-500.0,0.00027397,2]
[341606844,1731024639644,-500.0,0.00027397,2]
[341606845,1731024639653,-500.0,0.00027397,2]
[341606846,1731024639662,-500.0,0.00027397,2]
[341606847,1731024639671,-500.0,0.00027397,2]
[341606848,1731024639680,-500.0,0.00027397,2]
[341606849,1731024639689,-500.0,0.00027397,2]
[341606850,1731024639698,-500.0,0.00027397,2]
[341606851,1731024639707,-500.0,0.00027397,2]
[341606852,1731024639716,-500.0,0.00027397,2]
[341606853,1731024639725,-503.71485576,0.00027397,2]
[341606854,1731024639734,-500.0,0.00027397,2]
[341606855,1731024639743,-500.0,0.00027397,2]
[341606856,1731024639753,-500.0,0.00027397,2]
[341606857,1731024639762,-500.0,0.00027397,2]
[341606858,1731024639773,-500.0,0.00027397,2]
[341606859,1731024639783,-500.0,0.00027397,2]
[341606860,1731024639792,-500.0,0.00027397,2]
[341606861,1731024639802,-500.0,0.00027397,2]
[341606862,1731024639811,-500.0,0.00027397,2]
[341606863,1731024639820,-500.0,0.00027397,2]
[341606864,1731024639829,-500.0,0.00027397,2]
[341606865,1731024639838,-500.0,0.00027397,2]
[341606866,1731024639847,-500.0,0.00027397,2]
[341606867,1731024639857,-500.0,0.00027397,2]
[341606868,1731024639866,-440.01374612,0.00027397,2]
[341606869,1731024639875,-782.55,0.00027397,2]
[341606870,1731024639884,-500.0,0.00027397,2]
[341606871,1731024639893,-500.0,0.00027397,2]
[341606872,1731024639903,-610.09,0.00027397,2]
[341606873,1731024639912,-670.88,0.00027397,2]
[341606874,1731024639921,-610.43,0.00027397,2]
[341606875,1731024639931,-500.0,0.00027397,2]
[341606876,1731024639940,-500.0,0.00027397,2]
[341606877,1731024639949,-1157.01,0.00027397,2]
[341606878,1731024639961,-500.0,0.00027397,2]
[341606879,1731024639971,-282.24620379,0.00027397,2]
[341606880,1731024639981,-1000.0,0.00027397,2]
[341606881,1731024639990,-500.0,0.00027397,2]
[341606882,1731024640001,-500.0,0.00027397,2]
[341606883,1731024640010,-500.0,0.00027397,2]
[341606884,1731024640019,-561.06,0.00027397,2]
[341606885,1731024640033,-509.53046024,0.00027397,2]
[341606886,1731024640043,-698.24,0.00027397,2]
[341606887,1731024640052,-500.0,0.00027397,2]
[341606888,1731024640062,-514.34,0.00027397,2]
[341606889,1731024640071,-545.26,0.00027397,2]
[341606890,1731024640080,-500.0,0.00027397,2]
[341606891,1731024640089,-500.0,0.00027397,2]
[341606892,1731024640098,-173.87438048,0.00027397,2]
[341606893,1731024640107,-500.0,0.00027397,2]
[341606894,1731024640116,-500.0,0.00027397,2]
[341606895,1731024640125,-500.0,0.00027397,2]
[341606896,1731024640134,-829.0,0.00027397,2]
[341606897,1731024640143,-500.0,0.00027397,2]
[341606898,1731024640153,-500.0,0.00027397,2]
[341606899,1731024640161,-573.2,0.00027397,2]
[341606900,1731024640171,-500.0,0.00027397,2]
[341606901,1731024640180,-500.0,0.00027397,2]
[341606902,1731024640189,-500.0,0.00027397,2]
[341606903,1731024640199,-500.0,0.00027397,2]
[341606904,1731024640209,-500.0,0.00027397,2]
[341606905,1731024640219,-500.0,0.00027397,2]
[341606906,1731024640228,-500.0,0.00027397,2]
[341606907,1731024640237,-500.0,0.00027397,2]
[341606908,1731024640246,-623.68,0.00027397,2]
[341606909,1731024640256,-1004.62,0.00027397,2]
[341606910,1731024640265,-742.2,0.00027397,2]
[341606911,1731024640277,-500.0,0.00027397,2]
[341606912,1731024640286,-500.0,0.00027397,2]
[341606913,1731024640295,-503.34002586,0.00027397,2]
[341606914,1731024640304,-500.0,0.00027397,2]
[341606915,1731024640313,-500.0,0.00027397,2]
[341606916,1731024640322,-822.11,0.00027397,2]
[341606917,1731024640331,-754.12,0.00027397,2]
[341606918,1731024640340,-500.0,0.00027397,2]
[341606919,1731024640350,-500.0,0.00027397,2]
[341606920,1731024640359,-681.51,0.00027397,2]
[341606921,1731024640368,-500.0,0.00027397,2]
[341606922,1731024640378,-500.0,0.00027397,2]
[341606923,1731024640387,-500.0,0.00027397,2]
[341606924,1731024640396,-500.0,0.00027397,2]
[341606925,1731024640405,-500.0,0.00027397,2]
[341606926,1731024640414,-500.0,0.00027397,2]
[341606927,1731024640424,-500.0,0.00027397,2]
[341606928,1731024640434,-501.77,0.00027397,2]
[341606929,1731024640443,-500.0,0.00027397,2]
[341606930,1731024640453,-500.0,0.00027397,2]
[341606931,1731024640463,-500.0,0.00027397,2]
[341606932,1731024640473,-500.0,0.00027397,2]
[341606933,1731024640482,-500.0,0.00027397,2]
[341606934,1731024640491,-500.0,0.00027397,2]
[341606935,1731024640501,-513.17776097,0.00027397,2]
[341606936,1731024640511,-610.26,0.00027397,2]
[341606937,1731024640520,-500.0,0.00027397,2]
[341606938,1731024640532,-532.14,0.00027397,2]
[341606939,1731024640541,-508.43,0.00027397,2]
[341606940,1731024640551,-500.0,0.00027397,2]
[341606941,1731024640560,-500.0,0.00027397,2]
[341606942,1731024640569,-500.0,0.00027397,2]
[341606943,1731024640578,-500.0,0.00027397,2]
[341606944,1731024640587,-500.0,0.00027397,2]
[341606945,1731024640597,-500.0,0.00027397,2]
[341606946,1731024640606,-500.0,0.00027397,2]
[341606947,1731024640616,-1485.26,0.00027397,2]
[341606948,1731024640625,-500.0,0.00027397,2]
[341606949,1731024640635,-500.0,0.00027397,2]
[341606950,1731024640644,-1124.54,0.00027397,2]
[341606951,1731024640653,-924.83,0.00027397,2]
[341606952,1731024640662,-663.35,0.00027397,2]
[341606953,1731024640671,-1112.4,0.00027397,2]
[341606954,1731024640681,-500.0,0.00027397,2]
[341606955,1731024640690,-719.49,0.00027397,2]
[341606956,1731024640699,-500.0,0.00027397,2]
[341606957,1731024640708,-500.0,0.00027397,2]
[341606958,1731024640718,-500.0,0.00027397,2]
[341606959,1731024640727,-595.15,0.00027397,2]
[341606960,1731024640736,-500.0,0.00027397,2]
[341606961,1731024640746,-500.0,0.00027397,2]
[341606962,1731024640755,-500.0,0.00027397,2]
[341606963,1731024640764,-500.0,0.00027397,2]
[341606964,1731024640776,-2772.79,0.00027397,2]
[341606965,1731024640786,-500.0,0.00027397,2]
[341606966,1731024640796,-500.0,0.00027397,2]
[341606967,1731024640805,-582.27,0.00027397,2]
[341606968,1731024640814,-1360.15,0.00027397,2]
[341606969,1731024640823,-520.25,0.00027397,2]
[341606970,1731024640833,-500.0,0.00027397,2]
[341606971,1731024640843,-878.93,0.00027397,2]
[341606972,1731024640853,-548.57,0.00027397,2]
[341606973,1731024640862,-590.65888479,0.00027397,2]
[341606974,1731024640871,-753.44,0.00027397,2]
[341606975,1731024640881,-206.68542388,0.00027397,2]
[341606976,1731024640890,-316.50516213,0.00027397,2]
[341606977,1731024640900,-190.97752988,0.00027397,2]
[341606978,1731024640909,-500.0,0.00027397,2]
[341606979,1731024640919,-711.23,0.00027397,2]
[341606980,1731024640928,-500.0,0.00027397,2]
[341606981,1731024640937,-608.56,0.00027397,2]
[341606982,1731024640946,-500.0,0.00027397,2]
[341606983,1731024640956,-500.0,0.00027397,2]
[341606984,1731024640965,-500.0,0.00027397,2]
[341606985,1731024640974,-500.0,0.00027397,2]
[341606986,1731024640983,-573.63,0.00027397,2]
[341606987,1731024640993,-592.21,0.00027397,2]
[341606988,1731024641002,-986.62,0.00027397,2]
[341606989,1731024641011,-500.0,0.00027397,2]
[341606990,1731024641021,-500.0,0.00027397,2]
[341606991,1731024641031,-500.0,0.00027397,2]
[341606992,1731024641041,-655.75,0.00027397,2]
[341606993,1731024641051,-500.0,0.00027397,2]
[341606994,1731024641061,-808.15,0.00027397,2]
[341606995,1731024641070,-500.0,0.00027397,2]
[341606996,1731024641079,-500.0,0.00027397,2]
[341606997,1731024641088,-545.4,0.00027397,2]
[341606998,1731024641098,-500.0,0.00027397,2]
[341606999,1731024641107,-500.0,0.00027397,2]
[341607000,1731024641116,-500.0,0.00027397,2]
[341607001,1731024641126,-500.0,0.00027397,2]
[341607002,1731024641135,-500.0,0.00027397,2]
[341607003,1731024641144,-511.7,0.00027397,2]
[341607004,1731024641153,-500.0,0.00027397,2]
[341607005,1731024641162,-621.61,0.00027397,2]
[341607006,1731024641171,-500.0,0.00027397,2]
[341607007,1731024641181,-534.39,0.00027397,2]
[341607008,1731024641190,-500.0,0.00027397,2]
[341607009,1731024641199,-500.0,0.00027397,2]
[341607010,1731024641209,-500.0,0.00027397,2]
[341607011,1731024641218,-470.42814612,0.00027397,2]
[341607012,1731024641227,-500.0,0.00027397,2]
[341607013,1731024641236,-507.30968749,0.00027397,2]
[341607014,1731024641246,-500.0,0.00027397,2]
[341607015,1731024641255,-500.0,0.00027397,2]
[341607016,1731024641264,-295.88676522,0.00027397,2]
[341607017,1731024641274,-500.0,0.00027397,2]
[341607018,1731024641283,-716.76,0.00027397,2]
[341607019,1731024641293,-501.33,0.00027397,2]
[341607020,1731024641302,-500.0,0.00027397,2]
[341607021,1731024641312,-500.0,0.00027397,2]
[341607022,1731024641321,-500.0,0.00027397,2]
[341607023,1731024641330,-500.0,0.00027397,2]
[341607024,1731024641339,-500.0,0.00027397,2]
[341607025,1731024641348,-500.0,0.00027397,2]
[341607026,1731024641357,-500.0,0.00027397,2]
[341607027,1731024641366,-500.0,0.00027397,2]
[341607028,1731024641375,-575.06,0.00027397,2]
[341607029,1731024641385,-500.0,0.00027397,2]
[341607030,1731024641394,-558.73,0.00027397,2]
[341607031,1731024641403,-652.8,0.00027397,2]
[341607032,1731024641412,-500.0,0.00027397,2]
[341607033,1731024641421,-500.0,0.00027397,2]
[341607034,1731024641430,-500.0,0.00027397,2]
[341607035,1731024641439,-500.0,0.00027397,2]
[341607036,1731024641448,-500.0,0.00027397,2]
[341607037,1731024641457,-541.8,0.00027397,2]
[341607038,1731024641466,-500.0,0.00027397,2]
[341607039,1731024641475,-500.0,0.00027397,2]
[341607040,1731024641484,-500.0,0.00027397,2]
[341607041,1731024641493,-850.56,0.00027397,2]
[341607042,1731024641502,-583.9,0.00027397,2]
[341607043,1731024641511,-500.0,0.00027397,2]
[341607044,1731024641521,-500.0,0.00027397,2]
[341607045,1731024641533,-500.0,0.00027397,2]
[341607046,1731024641542,-500.0,0.00027397,2]
[341607047,1731024641551,-500.0,0.00027397,2]
[341607048,1731024641560,-678.3,0.00027397,2]
[341607049,1731024641569,-679.39,0.00027397,2]
[341607050,1731024641578,-200.0,0.00027397,2]
[341607051,1731024641588,-523.37,0.00027397,2]
[341607052,1731024641597,-554.45,0.00027397,2]
[341607053,1731024641607,-1103.67,0.00027397,2]
[341607054,1731024641616,-619.49835175,0.00027397,2]
[341607055,1731024641625,-500.0,0.00027397,2]
[341607056,1731024641634,-795.57,0.00027397,2]
[341607057,1731024641643,-500.0,0.00027397,2]
[341607058,1731024641653,-500.0,0.00027397,2]
[341607059,1731024641662,-1450.07,0.00027397,2]
[341607060,1731024641671,-500.0,0.00027397,2]
[341607061,1731024641680,-500.0,0.00027397,2]
[341607062,1731024641689,-677.54,0.00027397,2]
[341607063,1731024641697,-500.0,0.00027397,2]
[341607064,1731024641706,-500.0,0.00027397,2]
[341607065,1731024641716,-770.79,0.00027397,2]
[341607066,1731024641725,-197.91962495,0.00027397,2]
[341607067,1731024641734,-500.0,0.00027397,2]
[341607068,1731024641743,-500.0,0.00027397,2]
[341607069,1731024641753,-541.49,0.00027397,2]
[341607070,1731024641762,-500.0,0.00027397,2]
[341607071,1731024641771,-500.0,0.00027397,2]
[341607072,1731024641783,-500.0,0.00027397,2]
[341607073,1731024641792,-500.0,0.00027397,2]
[341607074,1731024641801,-500.0,0.00027397,2]
[341607075,1731024641810,-500.0,0.00027397,2]
[341607076,1731024641819,-500.0,0.00027397,2]
[341607077,1731024641829,-500.0,0.00027397,2]
[341607078,1731024641838,-558.86,0.00027397,2]
[341607079,1731024641847,-500.0,0.00027397,2]
[341607080,1731024641856,-500.0,0.00027397,2]
[341607081,1731024641865,-518.34,0.00027397,2]
[341607082,1731024641874,-812.22,0.00027397,2]
[341607083,1731024641883,-405.53711606,0.00027397,2]
[341607084,1731024641893,-286.83,0.00027397,2]
[341607085,1731024641902,-500.0,0.00027397,2]
[341607086,1731024641911,-500.0,0.00027397,2]
[341607087,1731024641920,-500.0,0.00027397,2]
[341607088,1731024641930,-500.0,0.00027397,2]
[341607089,1731024641939,-500.0,0.00027397,2]
[341607090,1731024641948,-500.0,0.00027397,2]
[341607091,1731024641960,-500.0,0.00027397,2]
[341607092,1731024641969,-718.94,0.00027397,2]
[341607093,1731024641978,-1169.65,0.00027397,2]
[341607094,1731024641988,-500.0,0.00027397,2]
[341607095,1731024641997,-1307.13,0.00027397,2]
[341607096,1731024642006,-500.0,0.00027397,2]
[341607097,1731024642015,-500.0,0.00027397,2]
[341607098,1731024642026,-500.0,0.00027397,2]
[341607099,1731024642042,-500.0,0.00027397,2]
[341607100,1731024642052,-500.0,0.00027397,2]
[341607101,1731024642061,-500.0,0.00027397,2]
[341607102,1731024642070,-500.0,0.00027397,2]
[341607103,1731024642079,-546.55,0.00027397,2]
[341607104,1731024642088,-802.06,0.00027397,2]
[341607105,1731024642097,-500.0,0.00027397,2]
[341607106,1731024642106,-509.53,0.00027397,2]
[341607107,1731024642115,-500.0,0.00027397,2]
[341607108,1731024642124,-500.0,0.00027397,2]
[341607109,1731024642133,-500.0,0.00027397,2]
[341607110,1731024642143,-500.0,0.00027397,2]
[341607111,1731024642152,-500.0,0.00027397,2]
[341607112,1731024642162,-500.0,0.00027397,2]
[341607113,1731024642171,-500.0,0.00027397,2]
[341607114,1731024642181,-500.0,0.00027397,2]
[341607115,1731024642191,-500.0,0.00027397,2]
[341607116,1731024642200,-654.25,0.00027397,2]
[341607117,1731024642210,-500.0,0.00027397,2]
[341607118,1731024642220,-500.0,0.00027397,2]
[341607119,1731024642230,-194.15966199,0.00027397,2]
[341607120,1731024642239,-713.94,0.00027397,2]
[341607121,1731024642249,-500.0,0.00027397,2]